[Event "33rd Pula Open 2019"]
[Site "Pula"]
[Date "2019.06.24"]
[Round "4.10"]
[White "Zufic, Miroslav"]
[Black "Van der Zon, Stef"]
[Result "1-0"]
[ECO "B30"]
[WhiteElo "2380"]
[BlackElo "2148"]
[Annotator "NA"]
[PlyCount "35"]
[EventDate "2019.06.22"]
[EventType "swiss"]
[EventCountry "CRO"]
[SourceTitle "playchess.com"]
[Source "ChessBase"]
[SourceQuality "1"]
[TimeControl "5400+30"]

1. e4 {[%emt 0:00:30]} c5 {[%emt 0:01:30]} 2. Nf3 {[%emt 0:00:30]} Nc6 {[%emt 0:00:30]} 3. Nc3 {[%emt 0:00:30]} e5 {[%emt 0:00:30]} 4. Bc4 {[%emt 0:00:30]} d6 {[%emt 0:00:30]} 5. d3 {[%emt 0:00:30]} Be7 {[%emt 0:00:30]} 6. Nd2 {[%emt 0:01:30]} Bg5 {[%emt 0:06:30]} 7. a4 {[%emt 0:05:30]} Nf6 {[%emt 0:06:30]} 8. Nf1 {[%emt 0:09:30]} Bxc1 {[%emt 0:10:30]} 9. Qxc1 {[%emt 0:00:30]} O-O {[%emt 0:05:30]} 10. Ne3 {[%emt 0:02:30]} Nh5 {[%emt 0:05:30]} 11. Ncd5 {[%emt 0:14:30]} Be6 {[%emt 0:13:30]} 12. c3 {[%emt 0:02:30]} a6 {[%emt 0:12:30]} 13. Qd1 {[%emt 0:14:30]} Nf4 {[%emt 0:08:30]} 14. g3 {[%emt 0:03:30]} Nh3 {[%emt 0:00:30]} 15. Qh5 {[%emt 0:02:30]} Qg5 {[%emt 0:06:53]} 16. Qxg5 {[%emt 0:02:30]} Nxg5 {[%emt 0:00:04]} 17. h4 {[%emt 0:00:30]} b5 {[%emt 0:02:46]} 18. Ba2 {[%emt 0:02:30]} 1-0

[Event "33rd Pula Open 2019"]
[Site "Pula"]
[Date "2019.06.24"]
[Round "4.11"]
[White "Van der Steen, Jan-Aart"]
[Black "Beletic, Daniel"]
[Result "0-1"]
[ECO "B12"]
[WhiteElo "2150"]
[BlackElo "2380"]
[Annotator "NA"]
[PlyCount "54"]
[EventDate "2019.06.22"]
[EventType "swiss"]
[EventCountry "CRO"]
[SourceTitle "playchess.com"]
[Source "ChessBase"]
[SourceQuality "1"]
[TimeControl "5400+30"]

1. e4 {[%emt 0:00:30]} c6 {[%emt 0:10:30]} 2. d4 {[%emt 0:00:00]} d5 {[%emt 0:00:30]} 3. e5 {[%emt 0:00:00]} c5 {[%emt 0:00:30]} 4. dxc5 {[%emt 0:00:00]} e6 {[%emt 0:00:30]} 5. Be3 {[%emt 0:02:00]} Nh6 {[%emt 0:01:30]} 6. c3 {[%emt 0:06:30]} Nf5 {[%emt 0:00:00]} 7. Bd4 {[%emt 0:00:00]} Bd7 {[%emt 0:00:00]} 8. Nf3 {[%emt 0:03:00]} Nc6 {[%emt 0:05:30]} 9. Be2 {[%emt 0:03:30]} Nfxd4 {[%emt 0:02:30]} 10. cxd4 {[%emt 0:00:30]} b6 {[%emt 0:00:00]} 11. cxb6 {[%emt 0:06:30]} Qxb6 {[%emt 0:00:00]} 12. Qd2 {[%emt 0:01:30]} Rb8 {[%emt 0:03:30]} 13. Nc3 {[%emt 0:03:30]} Qxb2 {[%emt 0:00:30]} 14. Qxb2 {[%emt 0:02:30]} Rxb2 {[%emt 0:01:30]} 15. Kd1 {[%emt 0:11:30]} Be7 {[%emt 0:08:30]} 16. Rb1 {[%emt 0:06:30]} Rxb1+ {[%emt 0:00:30]} 17. Nxb1 {[%emt 0:00:30]} O-O {[%emt 0:00:00]} 18. Kd2 {[%emt 0:04:30]} Rb8 {[%emt 0:11:00]} 19. Ke3 {[%emt 0:06:30]} Rb2 {[%emt 0:03:30]} 20. a3 {[%emt 0:04:30]} f6 {[%emt 0:09:30]} 21. exf6 {[%emt 0:03:30]} gxf6 {[%emt 0:00:30]} 22. Rd1 {[%emt 0:04:30]} Bf8 {[%emt 0:02:30]} 23. Nfd2 {[%emt 0:05:30]} e5 {[%emt 0:06:30]} 24. dxe5 {[%emt 0:06:55]} fxe5 {[%emt 0:01:30]} 25. Ba6 {[%emt 0:02:57]} Bh6+ {[%emt 0:05:30]} 26. Ke2 {[%emt 0:02:02]} Nd4+ {[%emt 0:00:30]} 27. Kf1 {[%emt 0:00:55]} Ba4 {[%emt 0:01:30]} 0-1

[Event "33rd Pula Open 2019"]
[Site "Pula"]
[Date "2019.06.24"]
[Round "4.12"]
[White "Jelen, Igor"]
[Black "Rabus, Berthold"]
[Result "1/2-1/2"]
[ECO "D30"]
[WhiteElo "2353"]
[BlackElo "2123"]
[Annotator "NA"]
[PlyCount "78"]
[EventDate "2019.06.22"]
[EventType "swiss"]
[EventCountry "CRO"]
[SourceTitle "playchess.com"]
[Source "ChessBase"]
[SourceQuality "1"]
[TimeControl "5400+30"]

1. d4 {[%emt 0:00:00]} d5 {[%emt 0:01:30]} 2. c4 {[%emt 0:00:00]} c6 {[%emt 0:00:30]} 3. Nf3 {[%emt 0:00:00]} Nf6 {[%emt 0:00:30]} 4. e3 {[%emt 0:00:00]} e6 {[%emt 0:00:30]} 5. b3 {[%emt 0:00:30]} Bb4+ {[%emt 0:00:30]} 6. Nbd2 {[%emt 0:00:30]} Nbd7 {[%emt 0:04:30]} 7. Bb2 {[%emt 0:06:30]} O-O {[%emt 0:05:30]} 8. Bd3 {[%emt 0:02:30]} b6 {[%emt 0:05:30]} 9. O-O {[%emt 0:01:30]} Bb7 {[%emt 0:03:30]} 10. e4 {[%emt 0:05:30]} dxe4 {[%emt 0:05:30]} 11. Nxe4 {[%emt 0:00:30]} Be7 {[%emt 0:13:30]} 12. Qe2 {[%emt 0:24:30]} c5 {[%emt 0:05:30]} 13. Rad1 {[%emt 0:02:30]} cxd4 {[%emt 0:04:30]} 14. Nxd4 {[%emt 0:01:30]} Qc7 {[%emt 0:02:30]} 15. Ng5 {[%emt 0:08:30]} Nc5 {[%emt 0:06:30]} 16. Bc2 {[%emt 0:05:30]} h6 {[%emt 0:03:30]} 17. Nb5 {[%emt 0:06:30]} Qc6 {[%emt 0:02:30]} 18. Nf3 {[%emt 0:00:30]} a6 {[%emt 0:01:30]} 19. Nbd4 {[%emt 0:01:30]} Qc7 {[%emt 0:00:30]} 20. Rfe1 {[%emt 0:08:30]} Nce4 {[%emt 0:04:30]} 21. a3 {[%emt 0:02:30]} Rac8 {[%emt 0:03:30]} 22. Nd2 {[%emt 0:03:10]} Nxd2 {[%emt 0:01:30]} 23. Rxd2 {[%emt 0:00:18]} Rfd8 {[%emt 0:09:17]} 24. Rdd1 {[%emt 0:03:04]} Bc5 {[%emt 0:02:28]} 25. Bb1 {[%emt 0:08:19]} Qf4 {[%emt 0:02:17]} 26. Qe3 {[%emt 0:02:30]} Qg4 {[%emt 0:03:03]} 27. Qg3 {[%emt 0:03:15]} Bxd4 {[%emt 0:02:42]} 28. Qxg4 {[%emt 0:00:37]} Bxf2+ {[%emt 0:00:38]} 29. Kxf2 {[%emt 0:00:06]} Nxg4+ {[%emt 0:00:06]} 30. Kg3 {[%emt 0:00:20]} Nf6 {[%emt 0:01:15]} 31. Bd4 {[%emt 0:01:11]} b5 {[%emt 0:01:18]} 32. Bb6 {[%emt 0:01:38]} Rxd1 {[%emt 0:01:15]} 33. Rxd1 {[%emt 0:00:04]} bxc4 {[%emt 0:01:01]} 34. bxc4 {[%emt 0:00:06]} Ne4+ {[%emt 0:00:54]} 35. Bxe4 {[%emt 0:00:43]} Bxe4 {[%emt 0:00:07]} 36. c5 {[%emt 0:00:15]} Bd5 {[%emt 0:00:45]} 37. Rd2 {[%emt 0:00:59]} Kf8 {[%emt 0:00:22]} 38. Kf4 {[%emt 0:00:22]} Ke7 {[%emt 0:00:36]} 39. Ke5 {[%emt 0:00:23]} f6+ {[%emt 0:00:28]} 1/2-1/2

[Event "33rd Pula Open 2019"]
[Site "Pula"]
[Date "2019.06.24"]
[Round "4.13"]
[White "Halfhide, Sebastian"]
[Black "Bucher, Grant W"]
[Result "1-0"]
[ECO "B00"]
[WhiteElo "2286"]
[BlackElo "2098"]
[Annotator "NA"]
[PlyCount "55"]
[EventDate "2019.06.22"]
[EventType "swiss"]
[EventCountry "CRO"]
[SourceTitle "playchess.com"]
[Source "ChessBase"]
[SourceQuality "1"]
[TimeControl "5400+30"]

1. e4 {[%emt 0:01:30]} b6 {[%emt 0:00:30]} 2. d4 {[%emt 0:01:30]} Bb7 {[%emt 0:00:00]} 3. Nd2 {[%emt 0:02:30]} e6 {[%emt 0:01:00]} 4. Ngf3 {[%emt 0:01:30]} c5 {[%emt 0:05:30]} 5. c3 {[%emt 0:04:30]} Nf6 {[%emt 0:01:30]} 6. Bd3 {[%emt 0:02:30]} cxd4 {[%emt 0:00:30]} 7. cxd4 {[%emt 0:01:30]} Be7 {[%emt 0:00:30]} 8. O-O {[%emt 0:05:30]} Ba6 {[%emt 0:01:30]} 9. Bxa6 {[%emt 0:03:30]} Nxa6 {[%emt 0:00:00]} 10. d5 {[%emt 0:12:30]} exd5 {[%emt 0:11:00]} 11. e5 {[%emt 0:01:30]} Ne4 {[%emt 0:00:30]} 12. Nxe4 {[%emt 0:01:30]} dxe4 {[%emt 0:00:00]} 13. Nd4 {[%emt 0:01:30]} O-O {[%emt 0:19:00]} 14. Qg4 {[%emt 0:03:30]} g6 {[%emt 0:03:30]} 15. Qxe4 {[%emt 0:03:30]} Re8 {[%emt 0:08:30]} 16. Qg4 {[%emt 0:05:30]} Bf8 {[%emt 0:06:30]} 17. Bg5 {[%emt 0:05:30]} Be7 {[%emt 0:03:30]} 18. Bf4 {[%emt 0:00:30]} Bf8 {[%emt 0:02:30]} 19. Rad1 {[%emt 0:09:30]} h5 {[%emt 0:02:30]} 20. Qh3 {[%emt 0:01:30]} Nc5 {[%emt 0:05:30]} 21. Nb5 {[%emt 0:03:30]} Ne6 {[%emt 0:05:30]} 22. Be3 {[%emt 0:00:30]} Bc5 {[%emt 0:08:57]} 23. f4 {[%emt 0:06:30]} Qe7 {[%emt 0:03:56]} 24. Nd6 {[%emt 0:00:30]} Bxd6 {[%emt 0:03:44]} 25. exd6 {[%emt 0:09:33]} Qd8 {[%emt 0:01:20]} 26. f5 {[%emt 0:00:25]} Nf8 {[%emt 0:00:42]} 27. fxg6 {[%emt 0:00:46]} fxg6 {[%emt 0:00:05]} 28. Qf3 {[%emt 0:00:38]} 1-0

[Event "33rd Pula Open 2019"]
[Site "Pula"]
[Date "2019.06.24"]
[Round "4.14"]
[White "Franciskovic, Borka"]
[Black "Klaric, Zoran"]
[Result "1-0"]
[ECO "E69"]
[WhiteElo "2261"]
[BlackElo "2086"]
[Annotator "NA"]
[PlyCount "57"]
[EventDate "2019.06.22"]
[EventType "swiss"]
[EventCountry "CRO"]
[SourceTitle "playchess.com"]
[Source "ChessBase"]
[SourceQuality "1"]
[TimeControl "5400+30"]

1. Nf3 {[%emt 0:00:00]} Nf6 {[%emt 0:01:30]} 2. c4 {[%emt 0:00:00]} g6 {[%emt 0:00:30]} 3. g3 {[%emt 0:00:00]} Bg7 {[%emt 0:00:30]} 4. Bg2 {[%emt 0:00:00]} O-O {[%emt 0:00:30]} 5. O-O {[%emt 0:00:30]} d6 {[%emt 0:00:30]} 6. d4 {[%emt 0:00:30]} Nbd7 {[%emt 0:00:30]} 7. Nc3 {[%emt 0:00:30]} c6 {[%emt 0:00:30]} 8. e4 {[%emt 0:04:30]} e5 {[%emt 0:00:30]} 9. h3 {[%emt 0:00:30]} Re8 {[%emt 0:02:30]} 10. Be3 {[%emt 0:05:30]} exd4 {[%emt 0:00:30]} 11. Nxd4 {[%emt 0:01:30]} Nc5 {[%emt 0:01:30]} 12. Qc2 {[%emt 0:01:30]} Qe7 {[%emt 0:03:30]} 13. Rfe1 {[%emt 0:11:30]} Nfd7 {[%emt 0:08:30]} 14. Rad1 {[%emt 0:10:30]} Nf8 {[%emt 0:03:30]} 15. f4 {[%emt 0:08:30]} Nfe6 {[%emt 0:01:30]} 16. Nde2 {[%emt 0:07:30]} a5 {[%emt 0:01:30]} 17. Qd2 {[%emt 0:04:30]} Bf8 {[%emt 0:02:30]} 18. f5 {[%emt 0:08:30]} Ng7 {[%emt 0:01:30]} 19. Nf4 {[%emt 0:09:30]} Nd7 {[%emt 0:03:30]} 20. g4 {[%emt 0:04:34]} Ne5 {[%emt 0:00:30]} 21. b3 {[%emt 0:00:35]} a4 {[%emt 0:00:30]} 22. Rf1 {[%emt 0:02:34]} f6 {[%emt 0:00:30]} 23. fxg6 {[%emt 0:02:08]} hxg6 {[%emt 0:01:30]} 24. Nfd5 {[%emt 0:01:34]} cxd5 {[%emt 0:01:30]} 25. Nxd5 {[%emt 0:00:06]} Qd8 {[%emt 0:02:30]} 26. Bb6 {[%emt 0:02:09]} f5 {[%emt 0:00:30]} 27. Bxd8 {[%emt 0:00:26]} Rxd8 {[%emt 0:00:30]} 28. exf5 {[%emt 0:02:22]} gxf5 {[%emt 0:00:30]} 29. Qg5 {[%emt 0:01:36]} 1-0

[Event "33rd Pula Open 2019"]
[Site "Pula"]
[Date "2019.06.24"]
[Round "4.15"]
[White "Grbac, Boris"]
[Black "Cumming, Rhys"]
[Result "0-1"]
[ECO "B22"]
[WhiteElo "2128"]
[BlackElo "2253"]
[Annotator "NA"]
[PlyCount "120"]
[EventDate "2019.06.22"]
[EventType "swiss"]
[EventCountry "CRO"]
[SourceTitle "playchess.com"]
[Source "ChessBase"]
[SourceQuality "1"]
[TimeControl "5400+30"]

1. e4 {[%emt 0:04:30]} c5 {[%emt 0:00:30]} 2. d4 {[%emt 0:00:30]} cxd4 {[%emt 0:00:00]} 3. c3 {[%emt 0:00:30]} Nf6 {[%emt 0:00:00]} 4. e5 {[%emt 0:00:00]} Nd5 {[%emt 0:00:30]} 5. Nf3 {[%emt 0:00:00]} e6 {[%emt 0:00:30]} 6. cxd4 {[%emt 0:00:30]} d6 {[%emt 0:00:30]} 7. Nc3 {[%emt 0:00:30]} Nxc3 {[%emt 0:05:30]} 8. bxc3 {[%emt 0:00:30]} Qc7 {[%emt 0:00:30]} 9. Bd2 {[%emt 0:03:30]} Nd7 {[%emt 0:04:30]} 10. exd6 {[%emt 0:04:30]} Bxd6 {[%emt 0:00:30]} 11. Bd3 {[%emt 0:00:30]} b6 {[%emt 0:06:30]} 12. O-O {[%emt 0:01:30]} Bb7 {[%emt 0:00:30]} 13. Re1 {[%emt 0:01:30]} O-O {[%emt 0:13:30]} 14. h3 {[%emt 0:11:30]} Rac8 {[%emt 0:10:30]} 15. Qe2 {[%emt 0:13:30]} Bf4 {[%emt 0:04:30]} 16. Rac1 {[%emt 0:05:30]} Bxf3 {[%emt 0:06:30]} 17. gxf3 {[%emt 0:00:30]} Nf6 {[%emt 0:04:30]} 18. Kh1 {[%emt 0:02:30]} Nd5 {[%emt 0:05:30]} 19. c4 {[%emt 0:09:30]} Bxd2 {[%emt 0:02:30]} 20. Qxd2 {[%emt 0:00:00]} Qf4 {[%emt 0:00:30]} 21. Qxf4 {[%emt 0:06:00]} Nxf4 {[%emt 0:00:30]} 22. Bf1 {[%emt 0:00:00]} Rfd8 {[%emt 0:02:30]} 23. Red1 {[%emt 0:03:00]} Kf8 {[%emt 0:00:00]} 24. Kh2 {[%emt 0:00:30]} Rc7 {[%emt 0:01:00]} 25. Rc2 {[%emt 0:02:30]} Rcd7 {[%emt 0:02:30]} 26. Rcd2 {[%emt 0:00:00]} Ng6 {[%emt 0:00:30]} 27. Kg3 {[%emt 0:01:00]} Ke7 {[%emt 0:15:25]} 28. h4 {[%emt 0:07:30]} Kf6 {[%emt 0:01:28]} 29. Bh3 {[%emt 0:02:30]} Rc7 {[%emt 0:02:01]} 30. Rc1 {[%emt 0:01:21]} Ne7 {[%emt 0:03:07]} 31. Kf4 {[%emt 0:00:27]} Nc6 {[%emt 0:00:10]} 32. Ke3 {[%emt 0:00:18]} Na5 {[%emt 0:00:40]} 33. Bf1 {[%emt 0:00:22]} Nb7 {[%emt 0:00:37]} 34. Bd3 {[%emt 0:01:24]} Nd6 {[%emt 0:01:28]} 35. Rdc2 {[%emt 0:05:20]} Rdc8 {[%emt 0:01:53]} 36. c5 {[%emt 0:00:40]} Nf5+ {[%emt 0:00:16]} 37. Bxf5 {[%emt 0:00:04]} Kxf5 {[%emt 0:00:06]} 38. a4 {[%emt 0:01:01]} e5 {[%emt 0:01:28]} 39. c6 {[%emt 0:01:09]} exd4+ {[%emt 0:00:28]} 40. Kd3 {[%emt 0:01:21]} Kf4 {[%emt 0:01:40]} 41. Rc4 {[%emt 0:00:16]} Kxf3 {[%emt 0:01:01]} 42. Kxd4 {[%emt 0:01:04]} Rd8+ {[%emt 0:00:08]} 43. Kc3 {[%emt 0:00:07]} f5 {[%emt 0:03:22]} 44. Kb4 {[%emt 0:00:59]} Rd3 {[%emt 0:00:42]} 45. Kb5 {[%emt 0:02:59]} Rd5+ {[%emt 0:00:01]} 46. Kb4 {[%emt 0:00:27]} Rd3 {[%emt 0:00:01]} 47. Kb5 {[%emt 0:01:01]} Rd5+ {[%emt 0:00:01]} 48. Kb4 {[%emt 0:00:07]} a5+ {[%emt 0:00:04]} 49. Kb3 {[%emt 0:01:07]} Rd3+ {[%emt 0:00:11]} 50. R1c3 {[%emt 0:00:08]} Rxc3+ {[%emt 0:00:12]} 51. Kxc3 {[%emt 0:00:10]} Kxf2 {[%emt 0:00:44]} 52. Kd4 {[%emt 0:00:10]} Kg3 {[%emt 0:00:49]} 53. Kd5 {[%emt 0:00:27]} f4 {[%emt 0:00:52]} 54. Kd6 {[%emt 0:00:06]} Rc8 {[%emt 0:00:16]} 55. Kd7 {[%emt 0:02:30]} Ra8 {[%emt 0:00:01]} 56. Kc7 {[%emt 0:00:18]} f3 {[%emt 0:00:23]} 57. Kxb6 {[%emt 0:00:26]} f2 {[%emt 0:00:29]} 58. Rc1 {[%emt 0:00:17]} Kxh4 {[%emt 0:00:44]} 59. Kb7 {[%emt 0:00:09]} Rf8 {[%emt 0:00:31]} 60. c7 {[%emt 0:00:12]} g5 {[%emt 0:01:15]} 0-1

[Event "33rd Pula Open 2019"]
[Site "Pula"]
[Date "2019.06.25"]
[Round "5.1"]
[White "Saric, Ante"]
[Black "Pecnik, Leo"]
[Result "1-0"]
[ECO "A06"]
[WhiteElo "2542"]
[BlackElo "2334"]
[Annotator "ChessBase"]
[PlyCount "77"]
[EventDate "2019.06.22"]
[EventType "swiss"]
[EventCountry "CRO"]
[SourceTitle "playchess.com"]
[Source "ChessBase"]
[SourceQuality "1"]
[TimeControl "5400+30"]

1. Nf3 {[%emt 0:00:30]} d5 {[%emt 0:01:30]} 2. e3 {[%emt 0:00:00]} g6 {[%emt 0:02:30]} 3. c4 {[%emt 0:00:00]} Nf6 {[%emt 0:00:30]} 4. cxd5 {[%emt 0:05:30]} Nxd5 {[%emt 0:00:00]} 5. d4 {[%emt 0:00:00]} Bg7 {[%emt 0:00:00]} 6. Be2 {[%emt 0:00:00]} O-O {[%emt 0:00:30]} 7. O-O {[%emt 0:00:30]} Nc6 {[%emt 0:04:30]} 8. e4 {[%emt 0:06:30]} Nb6 {[%emt 0:03:30]} 9. Be3 {[%emt 0:10:30]} Bg4 {[%emt 0:12:30]} 10. Nbd2 {[%emt 0:00:30]} Qd6 {[%emt 0:00:30]} 11. d5 {[%emt 0:03:30]} Bxf3 {[%emt 0:02:30]} 12. Nxf3 {[%emt 0:02:30]} Ne5 {[%emt 0:01:30]} 13. Qb3 {[%emt 0:12:30]} Ng4 {[%emt 0:12:30]} 14. Bd2 {[%emt 0:00:30]} Nd7 {[%emt 0:07:30]} 15. Bb4 {[%emt 0:14:30]} Qb6 {[%emt 0:07:30]} 16. h3 {[%emt 0:10:30]} Nge5 {[%emt 0:07:30]} 17. Bxe7 {[%emt 0:10:59]} Qxb3 {[%emt 0:12:30]} 18. axb3 {[%emt 0:00:02]} Nxf3+ {[%emt 0:00:30]} 19. gxf3 {[%emt 0:01:27]} Rfe8 {[%emt 0:03:52]} 20. Bh4 {[%emt 0:02:26]} Nc5 {[%emt 0:03:36]} 21. Bb5 {[%emt 0:09:16]} Reb8 {[%emt 0:00:16]} 22. Bg3 {[%emt 0:04:26]} Nxb3 {[%emt 0:01:02]} 23. Rad1 {[%emt 0:02:50]} Nd4 {[%emt 0:01:17]} 24. Bd3 {[%emt 0:00:15]} Nxf3+ {[%emt 0:02:15]} 25. Kg2 {[%emt 0:00:01]} Ne5 {[%emt 0:00:00]} 26. Be2 {[%emt 0:00:09]} Re8 {[%emt 0:02:55]} 27. f4 {[%emt 0:00:50]} Nd7 {[%emt 0:00:38]} 28. Bb5 {[%emt 0:00:58]} Red8 {[%emt 0:01:10]} 29. f5 {[%emt 0:01:19]} a6 {[%emt 0:01:51]} 30. Bc4 {[%emt 0:00:45]} Ne5 {[%emt 0:02:43]} 31. Ba2 {[%emt 0:00:11]} Rd6 {[%emt 0:00:17]} 32. Rc1 {[%emt 0:01:10]} Rb6 {[%emt 0:00:42]} 33. Rxc7 {[%emt 0:00:24]} Rxb2+ {[%emt 0:02:56]} 34. Rf2 {[%emt 0:00:01]} Rxf2+ {[%emt 0:00:00]} 35. Bxf2 {[%emt 0:00:37]} gxf5 {[%emt 0:01:22]} 36. exf5 {[%emt 0:00:02]} Nd3 {[%emt 0:00:40]} 37. Bh4 {[%emt 0:00:35]} Be5 {[%emt 0:00:34]} 38. d6 {[%emt 0:00:49]} Kh8 {[%emt 0:02:19]} 39. Rxf7 {[%emt 0:00:24]} 1-0

[Event "33rd Pula Open 2019"]
[Site "Pula"]
[Date "2019.06.25"]
[Round "5.2"]
[White "Jovanovic, Zoran"]
[Black "Kyc, Jerzy"]
[Result "1-0"]
[ECO "B53"]
[WhiteElo "2503"]
[BlackElo "2279"]
[Annotator "ChessBase"]
[PlyCount "131"]
[EventDate "2019.06.22"]
[EventType "swiss"]
[EventCountry "CRO"]
[SourceTitle "playchess.com"]
[Source "ChessBase"]
[SourceQuality "1"]
[TimeControl "5400+30"]

1. e4 {[%emt 0:00:30]} c5 {[%emt 0:00:30]} 2. Nf3 {[%emt 0:00:00]} d6 {[%emt 0:00:00]} 3. d4 {[%emt 0:00:00]} cxd4 {[%emt 0:00:00]} 4. Qxd4 {[%emt 0:00:00]} Bd7 {[%emt 0:00:30]} 5. Be3 {[%emt 0:01:00]} Nf6 {[%emt 0:00:00]} 6. Nc3 {[%emt 0:00:30]} Nc6 {[%emt 0:00:00]} 7. Qd2 {[%emt 0:00:30]} g6 {[%emt 0:00:30]} 8. h3 {[%emt 0:01:30]} Bg7 {[%emt 0:00:00]} 9. Bd3 {[%emt 0:00:30]} O-O {[%emt 0:00:00]} 10. O-O {[%emt 0:00:00]} Rc8 {[%emt 0:04:30]} 11. Nd5 {[%emt 0:04:00]} e6 {[%emt 0:12:30]} 12. Nxf6+ {[%emt 0:02:30]} Bxf6 {[%emt 0:00:30]} 13. c3 {[%emt 0:01:30]} Qc7 {[%emt 0:02:30]} 14. Rad1 {[%emt 0:05:30]} Rfd8 {[%emt 0:02:30]} 15. Bg5 {[%emt 0:04:30]} Bxg5 {[%emt 0:00:00]} 16. Qxg5 {[%emt 0:00:00]} Kg7 {[%emt 0:00:00]} 17. Rd2 {[%emt 0:06:00]} h6 {[%emt 0:07:30]} 18. Qe3 {[%emt 0:05:30]} e5 {[%emt 0:15:30]} 19. Bc4 {[%emt 0:04:30]} Na5 {[%emt 0:00:30]} 20. Bd5 {[%emt 0:00:30]} Bc6 {[%emt 0:03:30]} 21. Rfd1 {[%emt 0:05:30]} Bxd5 {[%emt 0:00:30]} 22. Rxd5 {[%emt 0:00:30]} Nc4 {[%emt 0:01:30]} 23. Qe2 {[%emt 0:00:30]} Re8 {[%emt 0:11:30]} 24. b3 {[%emt 0:04:30]} Nb6 {[%emt 0:00:30]} 25. Rxd6 {[%emt 0:00:30]} Qxc3 {[%emt 0:00:00]} 26. h4 {[%emt 0:02:30]} Rc6 {[%emt 0:09:00]} 27. R6d3 {[%emt 0:05:30]} Qb4 {[%emt 0:00:30]} 28. h5 {[%emt 0:00:00]} Qc5 {[%emt 0:10:20]} 29. Nh2 {[%emt 0:05:00]} Qc2 {[%emt 0:00:59]} 30. R3d2 {[%emt 0:00:30]} Qc3 {[%emt 0:00:01]} 31. Ng4 {[%emt 0:01:30]} a5 {[%emt 0:02:19]} 32. hxg6 {[%emt 0:06:30]} fxg6 {[%emt 0:00:12]} 33. Rd3 {[%emt 0:00:30]} Qc5 {[%emt 0:03:04]} 34. Qd2 {[%emt 0:00:30]} h5 {[%emt 0:00:27]} 35. Ne3 {[%emt 0:03:30]} Qb4 {[%emt 0:03:04]} 36. Qxb4 {[%emt 0:07:30]} axb4 {[%emt 0:01:41]} 37. Kh2 {[%emt 0:00:30]} Ra8 {[%emt 0:01:37]} 38. R1d2 {[%emt 0:00:30]} Kf6 {[%emt 0:04:53]} 39. Kh3 {[%emt 0:02:30]} Ra5 {[%emt 0:03:05]} 40. Rd8 {[%emt 0:00:30]} Kg5 {[%emt 0:01:19]} 41. g3 {[%emt 0:02:30]} Rc1 {[%emt 0:01:27]} 42. Rb8 {[%emt 0:00:30]} Ra7 {[%emt 0:00:54]} 43. Re8 {[%emt 0:00:30]} Rc5 {[%emt 0:00:37]} 44. Rd6 {[%emt 0:01:06]} Nc8 {[%emt 0:00:28]} 45. Rd5 {[%emt 0:00:07]} Rc6 {[%emt 0:00:37]} 46. Rexe5+ {[%emt 0:02:23]} Kf6 {[%emt 0:00:22]} 47. g4 {[%emt 0:00:45]} Rxa2 {[%emt 0:00:41]} 48. g5+ {[%emt 0:00:12]} Kf7 {[%emt 0:00:06]} 49. Rd7+ {[%emt 0:00:32]} Kf8 {[%emt 0:00:00]} 50. Kg2 {[%emt 0:01:56]} Nd6 {[%emt 0:00:58]} 51. Kf3 {[%emt 0:01:59]} Nf7 {[%emt 0:00:42]} 52. Rb5 {[%emt 0:01:14]} Rc3 {[%emt 0:00:20]} 53. Rdxb7 {[%emt 0:00:53]} Rxb3 {[%emt 0:00:12]} 54. Rd7 {[%emt 0:00:30]} Rbb2 {[%emt 0:00:30]} 55. Rb8+ {[%emt 0:00:18]} Kg7 {[%emt 0:00:01]} 56. e5 {[%emt 0:04:54]} Rxf2+ {[%emt 0:00:26]} 57. Ke4 {[%emt 0:00:06]} Rad2 {[%emt 0:00:28]} 58. Re7 {[%emt 0:03:11]} b3 {[%emt 0:02:13]} 59. e6 {[%emt 0:00:30]} Rd6 {[%emt 0:00:30]} 60. exf7 {[%emt 0:00:30]} Rxf7 {[%emt 0:00:30]} 61. Ree8 {[%emt 0:00:30]} Rfd7 {[%emt 0:00:30]} 62. Rxb3 {[%emt 0:00:30]} Rd4+ {[%emt 0:00:30]} 63. Ke5 {[%emt 0:00:30]} Ra4 {[%emt 0:00:30]} 64. Rbb8 {[%emt 0:00:30]} Rda7 {[%emt 0:00:30]} 65. Nd5 {[%emt 0:00:30]} Ra1 {[%emt 0:00:30]} 66. Rg8+ {[%emt 0:00:30]} 1-0